Cogmind - Beta 10.2 @@@ ROGUE MODE // 2021.01.13 @ 16:40:39 Player: terics Result: Destroyed by G-47 Trooper with Particle Gun Performance ------------- Evolutions (2) 1000 Regions Visited (3) 600 Robots Destroyed (35) 175 Value Destroyed (1029) 1029 Prototype IDs (2) 40 Alien Tech Used (0) 0 Bonus (0) 0 TOTAL SCORE: 2844 Bonus ------- None Cogmind --------- Core Integrity 0/550 Matter 300/300 Energy 99/100 System Corruption 0% Temperature Cool (9) Movement Core (250) Ox4 Location -8/Materials Parts ------- > --- POWER (1) -------- (None) > --- PROPULSION (3) --- (None) > --- UTILITY (4) ------ Medium Storage Unit Visual Processing Unit Melee Analysis Suite Improved Weapon Shielding > --- WEAPON (3) ------- Great Maul > --- INVENTORY (8) ---- Improved Ion Engine Advanced Terrain Scanner Medium Armor Plating Scythe Peak State ------------ > --- POWER ------------ Light Nuclear Core > --- PROPULSION ------- Compact Wheel Compact Wheel Armored Wheel > --- UTILITY ---------- Improved Heat Sink Medium Storage Unit Visual Processing Unit Melee Analysis Suite > --- WEAPON ----------- Enhanced Autogun Axe Axe > --- INVENTORY -------- Improved Ion Engine Light Nuclear Core Compact Wheel Medium Armor Plating Advanced Beam Cannon Light Assault Rifle Rocket Launcher [Rating: 27] Favorites ----------- Power Improved Ion Engine Engine Improved Ion Engine Power Core Light Nuclear Core Propulsion Compact Wheel Wheel Compact Wheel Utility Medium Storage Unit Device Improved Heat Sink Storage Medium Storage Unit Processor Melee Analysis Suite Protection Improved Weapon Shielding Weapon Light Assault Rifle Energy Gun EM Pulse Gun Energy Cannon Advanced Beam Cannon Ballistic Gun Light Assault Rifle Launcher Rocket Launcher Impact Weapon Great Maul Slashing Weapon Axe Build | -11 -10 -9 -8 ------- Run | Scr Mat Mat Mat Slots Evolved 4 | . . 2 2 Power . | . . . . Propulsion 1 | . . 1 . Utility 2 | . . . 2 Weapon 1 | . . 1 . Parts Attached 44 | 6 6 9 23 Power 7 | 1 4 . 2 Engine 5 | 1 4 . . Core 2 | . . . 2 Reactor . | . . . . Propulsion 8 | 2 1 2 3 Treads . | . . . . Leg . | . . . . Wheel 8 | 2 1 2 3 Hover . | . . . . Flight . | . . . . Utility 9 | 1 1 1 6 Device 3 | . . . 3 Storage 2 | 1 1 . . Processor 3 | . . 1 2 Hackware . | . . . . Protection 1 | . . . 1 Artifact . | . . . . Weapon 20 | 2 . 6 12 Energy Gun 3 | 1 . 1 1 Energy Cannon 4 | . . 2 2 Ballistic Gun 6 | 1 . 2 3 Ballistic Cannon . | . . . . Launcher 2 | . . . 2 Special Weapon . | . . . . Impact Weapon 2 | . . . 2 Slashing Weapon 3 | . . 1 2 Piercing Weapon . | . . . . Special Melee Weapon . | . . . . Unidentified Prototypes 2 | . . 1 1 Parts Lost 22 | . 2 4 16 Power 3 | . 1 . 2 Propulsion 8 | . 1 1 6 Utility 3 | . . . 3 Weapon 8 | . . 3 5 Highest Loss Streak 9 | . 2 2 9 Average Slot Usage (%) 95 | . 97 96 93 Engine 8 | . 14 11 3 Core 2 | . . . 4 Wheel 26 | . 27 30 24 Device 3 | . . . 8 Storage 17 | . 25 21 9 Processor 7 | . . . 15 Energy Gun 6 | . 14 6 2 Energy Cannon 5 | . . 8 5 Ballistic Gun 11 | . 14 16 6 Slashing Weapon 4 | . . 1 10 Naked Turns . | . . . . Heaviest Build 30 | 10 22 30 28 Greatest Support 48 | 32 32 48 44 Greatest Overweight (x) 4 | 1 . . 4 Average Overweight (x) . | . . . . Largest Inventory Capacity 10 | 6 10 10 8 Average Capacity 8 | 5 9 9 8 Most Carried 10 | 3 9 10 8 Average Carried 6 | 1 5 8 7 Final Capacity 10 | 6 10 8 8 Final Carried 8 | 3 8 8 4 Class Distribution -------------------- 67% | Mutant 25% | Gunner 7% | Scavenger-Mutant Dominant Class ---------------- Mutant | -10/Materials Gunner | -9/Materials Mutant | -8/Materials Resources | -11 -10 -9 -8 ----------- Run | Scr Mat Mat Mat Matter Collected 689 | 246 89 119 235 Remotely . | . . . . Salvage Created 1323 | . 144 222 957 Parts 63 | . 13 17 33 Haulers Intercepted 1 | . . . 1 Recyclers Shooed . | . . . . Parts Field Recycled . | . . . . Retrieved Matter . | . . . . Parts Self-Destructed . | . . . . Prevented . | . . . . Kills | -11 -10 -9 -8 ------- Run | Scr Mat Mat Mat Combat Hostiles Destroyed 32 | . 5 9 18 Melee 10 | . . . 10 Guns 13 | . 5 8 . Cannons 4 | . . 1 3 AOE 2 | . . . 2 Classes Destroyed 8 | . 2 1 5 Hauler 1 | . . . 1 Recycler 1 | . . . 1 Watcher 1 | . . . 1 Swarmer 13 | . 3 7 3 Grunt 13 | . 2 1 10 Brawler 1 | . . . 1 Sentry 4 | . . 1 3 Hunter 1 | . . . 1 Best Kill Streak 5 | . 3 4 5 Combat Bots Only 5 | . 3 4 5 Max Kills in Single Turn 2 | . 1 1 2 Gunslinging . | . . . . Exploded 2 | . . . 2 Melee 1 | . . . 1 Uniques/NPCs Destroyed . | . . . . Combat | -11 -10 -9 -8 -------- Run | Scr Mat Mat Mat Damage Taken 2352 | . 366 272 1714 Core 643 | . 23 57 563 Absorbed by Shields . | . . . . Core Remaining (%) 91 | 100 90 85 . Volleys Fired 75 | . 35 26 14 Largest 3 | . 2 3 2 Hottest 136 | . 60 136 136 Shots Fired 173 | . 70 75 28 Gun 143 | . 70 67 6 Cannon 27 | . . 8 19 Launcher 3 | . . . 3 Special . | . . . . Kinetic 88 | . 35 47 6 Thermal 45 | . . 26 19 Explosive 3 | . . . 3 Electromagnetic 37 | . 35 2 . Robot Hit Streak 28 | . 4 18 28 Robot Miss Streak 5 | . 4 5 2 Penetration Max . | . . . . Secondary Targets 1 | . . 1 . Max Gunslinging Chain 1 | . . 1 . Shots Hit Robots 143 | . 33 51 59 Core Hits 49 | . 10 15 24 Critical Hits 2 | . . . 2 Critical Kills . | . . . . Critical Parts Destroyed 2 | . . . 2 Melee Attacks 49 | . . 1 48 Impact 12 | . . . 12 Slashing 37 | . . 1 36 Piercing . | . . . . Sneak Attacks 1 | . . . 1 Combat Hostiles . | . . . . Follow-up Attacks 2 | . . . 2 Damage Inflicted 3076 | . 294 557 2225 Guns 726 | . 294 376 56 Cannons 451 | . . 144 307 Explosions 471 | . . . 471 Melee 1428 | . . 37 1391 Ramming . | . . . . Kinetic 473 | . 204 213 56 Thermal 596 | . . 289 307 Explosive 471 | . . . 471 Electromagnetic 108 | . 90 18 . Impact 276 | . . . 276 Slashing 1152 | . . 37 1115 Piercing . | . . . . Highest Corruption 1 | . 1 . . Average Corruption 1 | . 1 . . Corruption Purged . | . . . . Overload Shots . | . . . . Overflow Damage 127 | . . . 127 Projectiles 23 | . . . 23 Explosions 22 | . . . 22 Melee 82 | . . . 82 Knockbacks 2 | . . . 2 Impact 2 | . . . 2 Kinetic . | . . . . Secondary . | . . . . Self-Inflicted Damage 39 | . . . 39 Shots 1 | . . . 1 Rammed . | . . . . Targets Rammed . | . . . . Kicked . | . . . . Crushed . | . . . . Highest Temperature 279 | . 231 279 72 Average Temperature 74 | . 71 95 21 Received Heat Transfer 834 | . 147 48 639 Siege Activations . | . . . . Robots Corrupted . | . . . . Combat Hostiles . | . . . . Parts Fried . | . . . . Impact Corruptions 3 | . . . 3 Robots Melted . | . . . . Combat Hostiles . | . . . . Parts Melted . | . . . . Heat Transferred 1139 | . . 584 555 Parts Sabotaged . | . . . . Parts Stolen . | . . . . Parts Stripped . | . . . . Power Chain Reactions . | . . . . Missiles Intercepted . | . . . . Alert | -11 -10 -9 -8 ------- Run | Scr Mat Mat Mat Peak Influence 307 | . 164 197 307 Initial 9 | . . . 9 Average 100 | . 87 85 122 Maximum Alert Level 1 | . . . 1 Low Security (%) 91 | 100 100 100 81 Level 1 8 | . . . 18 Level 2 . | . . . . Level 3 . | . . . . Level 4 . | . . . . Level 5 . | . . . . High Security . | . . . . Max Security . | . . . . Squads Dispatched 5 | . . 2 3 Investigation . | . . . . Extermination . | . . . . Reinforcement 4 | . . 2 2 Assault . | . . . . Garrison 1 | . . . 1 Intercept . | . . . . Construction Impeded . | . . . . Haulers Reinforced . | . . . . Stealth | -11 -10 -9 -8 --------- Run | Scr Mat Mat Mat Distress Signals 2 | . . 2 . Communications Jammed . | . . . . Distress Signals . | . . . . Times Spotted 58 | . 9 14 35 Peak Tracking Total 6 | . 3 6 6 Tactical Retreats 3 | . . 1 2 Traps | -11 -10 -9 -8 ------- Run | Scr Mat Mat Mat Traps Triggered 1 | . 1 . . Indirectly . | . . . . Trap Hack Attempts . | . . . . Triggered . | . . . . Disarmed . | . . . . Reprogrammed . | . . . . Reused . | . . . . Traps Extracted . | . . . . Installed . | . . . . Triggered . | . . . . Machines | -11 -10 -9 -8 ---------- Run | Scr Mat Mat Mat Machines Disabled 1 | . . . 1 Max in Single Turn 1 | . . . 1 Machines Sabotaged . | . . . . Garrisons Compromised . | . . . . Overloaded Fab Kills . | . . . . Fab Network Shutdowns . | . . . . Hacking | -11 -10 -9 -8 --------- Run | Scr Mat Mat Mat Machines Accessed 8 | . 2 4 2 Terminals 7 | . 2 3 2 Fabricators . | . . . . Repair Stations . | . . . . Recycling Units . | . . . . Scanalyzers 1 | . . 1 . Garrison Access . | . . . . Total Hacks 17 | . 4 7 6 Successful 10 | . 2 5 3 Failed 7 | . 2 2 3 Catastrophic . | . . . . Database Lockouts . | . . . . Manual . | . . . . Terminals 15 | . 4 5 6 Fabricators . | . . . . Repair Stations . | . . . . Recycling Units . | . . . . Scanalyzers 2 | . . 2 . Garrison Access . | . . . . Terminal Hacks 8 | . 2 3 3 Record 1 | . . 1 . Alert Level 1 | . . . 1 Locate Traps 1 | . . . 1 Dispatch Records 2 | . 1 1 . Assault Status 1 | . . 1 . Registered Prototypes 1 | . . . 1 Zone Layout 1 | . 1 . . Fabricator Hacks . | . . . . Repair Station Hacks . | . . . . Recycling Unit Hacks . | . . . . Scanalyzer 2 | . . 2 . Insert Component 1 | . . 1 . Analyze 1 | . . 1 . Garrison Access Hacks . | . . . . Unauthorized Hacks . | . . . . Terminals . | . . . . Fabricators . | . . . . Repair Stations . | . . . . Recycling Units . | . . . . Scanalyzers . | . . . . Garrison Access . | . . . . Data Cores Recovered . | . . . . Used . | . . . . Hacking Detections 6 | . 1 3 2 Full Trace Events . | . . . . Feedback Events . | . . . . Feedback Blocked . | . . . . Robot Schematics Acquired . | . . . . Robots Built . | . . . . Matter . | . . . . Time . | . . . . Total Robot Build Rating . | . . . . Part Schematics Acquired 1 | . . 1 . Parts Built . | . . . . Matter . | . . . . Time . | . . . . Total Part Build Rating . | . . . . Parts Repaired . | . . . . Time . | . . . . Parts Recycled . | . . . . Recycled Matter . | . . . . Retrieved Matter . | . . . . Retrieved Components . | . . . . Parts Scanalyzed 1 | . . 1 . Part Schematics Acquired 1 | . . 1 . Parts Damaged . | . . . . Bothacking | -11 -10 -9 -8 ------------ Run | Scr Mat Mat Mat Used RIF Installer . | . . . . Robots Hacked . | . . . . Non-combat . | . . . . Combat . | . . . . Robot Hacks Applied . | . . . . Relay Couplers Released . | . . . . Robots Rewired . | . . . . Allies Hacked . | . . . . Hacks Repelled . | . . . . Allies | -11 -10 -9 -8 -------- Run | Scr Mat Mat Mat Total Allies . | . . . . Largest Group . | . . . . Highest-Rated Group . | . . . . Highest-Rated Ally . | . . . . Total Orders . | . . . . Ally Attacks . | . . . . Total Damage . | . . . . Kills . | . . . . Allies Corrupted . | . . . . Allies Melted . | . . . . Intel | -11 -10 -9 -8 ------- Run | Scr Mat Mat Mat Robot Analysis Total . | . . . . Derelict Logs Recovered . | . . . . Drone Launches . | . . . . Drone Recoveries . | . . . . Exploration | -11 -10 -9 -8 ------------- Run | Scr Mat Mat Mat Turns Passed 1669 | 45 405 482 737 Spaces Moved 1085 | 36 271 347 431 Core 10 | 7 . . 3 Treads . | . . . . Legs . | . . . . Wheels 1075 | 29 271 347 428 Hover . | . . . . Flight . | . . . . Fastest Speed 50 | 50 100 96 90 Average Speed 98 | 91 100 99 96 Slowest Speed 250 | 100 100 100 250 Overloaded Moves . | . . . . Propulsion Burnouts . | . . . . Robots Hopped . | . . . . Cave-ins Triggered . | . . . . Exploration Rate (%) 26 | 4 36 31 34 Regions Visited 3 Branch Regions . Pre-discovered Areas . | . . . . Known Exits Taken 1 | . . 1 . Unknown Exits Taken 2 | 1 1 . . Scrap Searched . | . . . . Spaces Dug . | . . . . Terrain Destroyed 10 | . . . 10 Melee . | . . . . Projectile . | . . . . AOE 10 | . . . 10 Terrain Rammed . | . . . . Walls Destroyed . | . . . . Machines Disabled . | . . . . Actions | -11 -10 -9 -8 --------- Run | Scr Mat Mat Mat Total 1461 | 44 341 433 643 Wait 172 | . 18 39 115 Move 1082 | 35 270 346 431 Hop . | . . . . Pick Up 27 | 3 8 9 7 Fast Attach 17 | 6 1 2 8 Attach 16 | . 2 5 9 Detach 2 | . . . 2 Swap 11 | . 3 2 6 Drop 14 | . 4 3 7 Fire 75 | . 35 26 14 Melee 45 | . . 1 44 Ram . | . . . . Kick . | . . . . Crush . | . . . . Escape Stasis . | . . . . Rewire . | . . . . Trap . | . . . . Miscellaneous . | . . . . Route ------- -11/Scrapyard -10/Materials -9/Materials -8/Materials History --------- Turn | Location | Event 20 | -11/Scrapyard | Discovered new exit (range 15) 46 | -11/Scrapyard | Entered Materials 241 | -10/Materials | Discovered new exit (range 7) 302 | -10/Materials | Build established: Mutant 451 | -10/Materials | Entered another Materials area 451 | -9/Materials | Evolved 2 slots: Propulsion x1, Weapon x1 759 | -9/Materials | Build established: Gunner 920 | -9/Materials | Discovered new exit (range 4) 925 | -9/Materials | Identified exit to Materials 933 | -9/Materials | Entered another Materials area 933 | -8/Materials | Evolved 2 slots: Utility x2 1161 | -8/Materials | Build established: Mutant 1541 | -8/Materials | Garrison activated, responded to threat 1631 | -8/Materials | Core integrity fell below 50% 1664 | -8/Materials | Core integrity fell below 20% 1670 | -8/Materials | Destroyed by G-47 Trooper with Particle Gun Last Messages --------------- K-01 Serf collects debris. Axe destroyed. Destroyed Particle Gun. G-47 Trooper system corrupted by crushing effect. U-05 Engineer lays Concrete. Lgt. Nuclear Core destroyed. U-05 Engineer lays Concrete. G-47 Trooper destroyed. G-47 Trooper knocked back. Destroyed Aluminum Leg. G-47 Trooper system corrupted by crushing effect. G-47 Trooper knocked back. Great Maul destroyed. K-01 Serf collects debris. O-16 Technician: "IFF HANDSHAKE FAILED. SECURING TERMINAL." R-06 Scavenger collects Lgt. Nuclear Core. R-06 Scavenger collects Aluminum Leg. K-01 Serf collects debris. R-06 Scavenger collects Aluminum Leg. Acquired 20 matter. Map ----- +----------------------------------------------------+ | ?????????????????????????????????????????????????? | | ?????????????????????????????????????????????????? | | ?????????????????????????????????????????????????? | | ?????????????????????????????????????????????????? | | ?????????????????????????????????????????????????? | | ?????????????????????????????????????????????????? | | ???????????????????? ?? ????????????????????? | | ???????????????????? ?? ??????????????????? | | ??????????????????? [ ?? ????????????????? | | ???????????? ???? ?? ???????????????? | | ????????????" ???? "?" ??????????????? | | ????????????"" ??""" """ ???????????????? | | ???????????""" """"" """ ???????????????? | | ???????? """"" """"" """ ????????????????? | | ??????? """ """ """ uk ?????????????????? | | ???????? o g#??????????????????? | | ????????? gg#??????????????????? | | ??????????? #??????????????????? | | ????????????# #??????????????????? | | ############# a #??????????????????? | | # # a #??????????????????? | | # ! ! [ # #??????????#???????? | | # # % % ##### #???????? | | # """ = "" + % +??????? | | # """ G" # % r% #####+?????????????? | | """ ] ""! # / m [ @ % #??????????????????? | | # =%! # #######r###??????????????????? | | ##########*### ##### %%= #??????????????????? | | ##???# ! #??????????????????? | | ##???# #??????????????????? | | % T#???# #??????????????????? | | " """"" ##???# #??????????????????? | | """"""" # #????# #??????????????????? | | """ """ # #????# #??????????????????? | | ########### ## ############??????????????????? | | #####T######## # #????????????????????? | | ^ #! """"" #????????????????????? | | %+= """"" #????????????????????? | | """ """ """ # """"" #????????????????????? | | """ """ """ # """"" #????????????????????? | | """ """ """ # """"" #????????????????????? | | ] # """"" #????????????????????? | | ^ ^ # """"" #????????????????????? | | """^ """ """ + #????????????????????? | | """ """ """ ##########????????????????????? | | """ """ """ #?????????????????????????????? | | #?????????????????????????????? | | %% #?????????????????????????????? | | #+##############+########????????????????????????? | | %== * #?# %! #????????????????????????? | +----------------------------------------------------+ Best States ------------- Heat Dissipation 45 Energy Generation 14 Energy Capacity 265 Matter Stores 300 Matter Capacity 300 Sight Range 18 Terrain Scan Density 10 Weapon Shielding 66 Evasion (%) 50 Melee Accuracy 5 Item Schematics ----------------- Imp. Heat Sink | -9/Materials | Scanalyzed Robot Schematics ------------------ None Fabricated ------------ Nothing Alien Tech Used ----------------- None Achievements -------------- None Challenges ------------ None Game ------ Seed PointyCorruptionAutohacker Manual? 0 Play Time 00:27:33 Cumulative 18.3 hours Start 2021.01.11 @ 17:02:01 End 2021.01.13 @ 16:40:39 Sessions 2 Manual Loads 0 Difficulty Rogue Special Mode None Game No. 40 Rogue 40 Adventurer 0 Explorer 0 Win Type - Total 0 Types 0/0/0/0/0/0/0/0/0 Lore% 21 Gallery% 30 Achievement% 20 Wizard Run 0 Options --------- ASCII 0 Keyboard 0 Movement Numpad Keybinds 0 Fullscreen 1 Font 18/SmallcapsGlow Map View 76x50 Tactical HUD 0 Map Filters NONE Filters NONE Steam 1 RUN: b299cee0-54b6-4ac8-a280-6f4e01f57dd6